{"text_format":"1","workbook":"xlsx","n_sheets":3,"sheets":["2013-2014 Stats","Variables","Sheet1"],"not_rendered":{"charts":0,"images":8,"macros":1,"external_links":0,"defined_names":3,"comments":0,"pivot_tables":0},"unopened":[],"bounds":{"document_bytes":16777216,"sheet_cells":100000,"rows_first":2000,"rows_last":500,"rows_between":2000,"halvings":0,"cell_chars":16384,"cell_head_chars":4096},"cells_cut":0,"cells_raw":0,"read":"whole","date_system":"1900"}

{"sheet":"2013-2014 Stats","index":0,"n_rows":63,"n_cols":70,"rows_kept":63,"cut":false,"hidden":false,"merged":[]}
[null,"First Name","Last Name","Team Name","Division","TOT","AVG","ERR","Tot Quiz","Q01","E01","Q02","E02","Q03","E03","Oct Tot","Oct Err","Q04","E04","Q05","E05","Q06","E06","Nov Tot","Nov Err","Q07","E07","Q08","E08","Q09","E09","Dec Tot","Dec Err","Q10","E10","Q11","E11","Q12","E12","Jan Tot","Jan Err","Q13","E13","Q14","E14","Q15","E15","Feb Tot","Feb Err","Q16","E16","Q17","E17","Q18","E18","Q19","E19","Q20","E20","Q21","E21","Mar Tot","Mar Err","Aver<Mar","Aver chg","# 1's","# 2's","# 3's","Year","Quizzer ID#"]
[1,null,null,null,"Var Coach",{"$f":"SUM(J2+L2+N2+R2+T2+V2+Z2+AB2+AD2+AH2+AJ2+AL2+AP2+AR2+AT2+AX2+AZ2+BB2+BD2+BF2+BH2)","v":0},{"$f":"TEXT(BN2,\"0\")&\"-\"&TEXT(BO2,\"0\")&\"-\"&TEXT(BP2,\"0\")","v":"0-0-0"},{"$f":"SUM(K2+M2+O2+S2+U2+W2+AA2+AC2+AE2+AI2+AK2+AM2+AQ2+AS2+AU2+AY2+BA2+BC2+BE2+BG2+BI2)","v":0},{"$f":"(COUNTA(J2:BK2)/2)-6","v":0},null,null,null,null,null,null,{"$f":"SUM(J2+L2+N2)","v":0},0,null,null,null,null,null,null,{"$f":"SUM(R2+T2+V2)","v":0},0,null,null,null,null,null,null,{"$f":"SUM(Z2+AB2+AD2)","v":0},0,null,null,null,null,null,null,{"$f":"SUM(AH2+AJ2+AL2)","v":0},0,null,null,null,null,null,null,{"$f":"SUM(AP2+AR2+AT2)","v":0},{"$f":"SUM(AQ2+AS2+AU2)","v":0},null,null,null,null,null,null,null,null,null,null,null,null,{"$f":"SUM(AX2+AZ2+BB2+BD2+BF2+BH2)","v":0},0,null,null,{"$f":"SUM(COUNTIF(J2,12)+COUNTIF(L2,12)+COUNTIF(N2,12)+COUNTIF(R2,12)+COUNTIF(T2,12)+COUNTIF(V2,12)+COUNTIF(Z2,12)+COUNTIF(AB2,12)+COUNTIF(AD2,12)+COUNTIF(AH2,12)+COUNTIF(AJ2,12)+COUNTIF(AL2,12)+COUNTIF(AP2,12)+COUNTIF(AR2,12)+COUNTIF(AT2,12)+COUNTIF(AX2,12)+COUNTIF(AZ2,12)+COUNTIF(BB2,12)+COUNTIF(BD2,12)+COUNTIF(BF2,12)+COUNTIF(BH2,12)+COUNTIF(J2,11)+COUNTIF(L2,11)+COUNTIF(N2,11)+COUNTIF(R2,11)+COUNTIF(T2,11)+COUNTIF(V2,11)+COUNTIF(Z2,11)+COUNTIF(AB2,11)+COUNTIF(AD2,11)+COUNTIF(AH2,11)+COUNTIF(AJ2,11)+COUNTIF(AL2,11)+COUNTIF(AP2,11)+COUNTIF(AR2,11)+COUNTIF(AT2,11)+COUNTIF(AX2,11)+COUNTIF(AZ2,11)+COUNTIF(BB2,11)+COUNTIF(BD2,11)+COUNTIF(BF2,11)+COUNTIF(BH2,11)+COUNTIF(J2,10)+COUNTIF(L2,10)+COUNTIF(N2,10)+COUNTIF(R2,10)+COUNTIF(T2,10)+COUNTIF(V2,10)+COUNTIF(Z2,10)+COUNTIF(AB2,10)+COUNTIF(AD2,10)+COUNTIF(AH2,10)+COUNTIF(AJ2,10)+COUNTIF(AL2,10)+COUNTIF(AP2,10)+COUNTIF(AR2,10)+COUNTIF(AT2,10)+COUNTIF(AX2,10)+COUNTIF(AZ2,10)+COUNTIF(BB2,10)+COUNTIF(BD2,10)+COUNTIF(BF2,10)+COUNTIF(BH2,10))","v":0},{"$f":"SUM(COUNTIF(J2:N2,7)+COUNTIF(R2:V2,7)+COUNTIF(Z2:AD2,7)+COUNTIF(AH2:AL2,7)+COUNTIF(AP2:AT2,7)+COUNTIF(AX2:BH2,7)+COUNTIF(J2:N2,6)+COUNTIF(R2:V2,6)+COUNTIF(Z2:AD2,6)+COUNTIF(AH2:AL2,6)+COUNTIF(AP2:AT2,6)+COUNTIF(AX2:BH2,6)+COUNTIF(J2:N2,5)+COUNTIF(R2:V2,5)+COUNTIF(Z2:AD2,5)+COUNTIF(AH2:AL2,5)+COUNTIF(AP2:AT2,5)+COUNTIF(AX2:BH2,5))","v":0},{"$f":"SUM(COUNTIF(J2:N2,3)+COUNTIF(R2:V2,3)+COUNTIF(Z2:AD2,3)+COUNTIF(AH2:AL2,3)+COUNTIF(AP2:AT2,3)+COUNTIF(AX2:BH2,3)+COUNTIF(J2:N2,2)+COUNTIF(R2:V2,2)+COUNTIF(Z2:AD2,2)+COUNTIF(AH2:AL2,2)+COUNTIF(AP2:AT2,2)+COUNTIF(AX2:BH2,2)+COUNTIF(J2:N2,1)+COUNTIF(R2:V2,1)+COUNTIF(Z2:AD2,1)+COUNTIF(AH2:AL2,1)+COUNTIF(AP2:AT2,1)+COUNTIF(AX2:BH2,1))","v":0},"2014-2015"]
[2,null,null,null,"Var Coach",0,"0-0-0",0,0,null,null,null,null,null,null,0,0,null,null,null,null,null,null,0,0,null,null,null,null,null,null,0,0,null,null,null,null,null,null,0,0,null,null,null,null,null,null,0,0,null,null,null,null,null,null,null,null,null,null,null,null,0,0,null,null,0,0,0,"2014-2015"]
[3,null,null,null,"Var Coach",0,"0-0-0",0,0,null,null,null,null,null,null,0,0,null,null,null,null,null,null,0,0,null,null,null,null,null,null,0,0,null,null,null,null,null,null,0,0,null,null,null,null,null,null,0,0,null,null,null,null,null,null,null,null,null,null,null,null,0,0,null,null,0,0,0,"2014-2015"]
[4,null,null,null,"Var Coach",0,"0-0-0",0,0,null,null,null,null,null,null,0,0,null,null,null,null,null,null,0,0,null,null,null,null,null,null,0,0,null,null,null,null,null,null,0,0,null,null,null,null,null,null,0,0,null,null,null,null,null,null,null,null,null,null,null,null,0,0,null,null,0,0,0,"2014-2015"]
[5,null,null,null,"Var Coach",0,"0-0-0",0,0,null,null,null,null,null,null,0,0,null,null,null,null,null,null,0,0,null,null,null,null,null,null,0,0,null,null,null,null,null,null,0,0,null,null,null,null,null,null,0,{"$f":"SUM(AQ6+AS6+AU6)","v":0},null,null,null,null,null,null,null,null,null,null,null,null,0,0,null,null,0,0,0,"2014-2015"]
[6,null,null,null,"Var Coach",0,"0-0-0",0,0,null,null,null,null,null,null,0,0,null,null,null,null,null,null,0,0,null,null,null,null,null,null,0,0,null,null,null,null,null,null,0,0,null,null,null,null,null,null,0,0,null,null,null,null,null,null,null,null,null,null,null,null,0,0,null,null,0,0,0,"2014-2015"]
[7,null,null,null,"Var Coach",0,"0-0-0",0,0,null,null,null,null,null,null,0,0,null,null,null,null,null,null,0,0,null,null,null,null,null,null,0,0,null,null,null,null,null,null,0,0,null,null,null,null,null,null,0,0,null,null,null,null,null,null,null,null,null,null,null,null,0,0,null,null,0,0,0,"2014-2015"]
[8,null,null,null,"Var Coach",0,"0-0-0",0,0,null,null,null,null,null,null,0,0,null,null,null,null,null,null,0,0,null,null,null,null,null,null,0,0,null,null,null,null,null,null,0,0,null,null,null,null,null,null,0,0,null,null,null,null,null,null,null,null,null,null,null,null,0,0,null,null,0,0,0,"2014-2015"]
[9,null,null,null,"Var Coach",0,"0-0-0",0,0,null,null,null,null,null,null,0,0,null,null,null,null,null,null,0,0,null,null,null,null,null,null,0,0,null,null,null,null,null,null,0,0,null,null,null,null,null,null,0,0,null,null,null,null,null,null,null,null,null,null,null,null,0,0,null,null,0,0,0,"2014-2015"]
[10,null,null,null,"Var Coach",0,"0-0-0",0,0,null,null,null,null,null,null,0,0,null,null,null,null,null,null,0,0,null,null,null,null,null,null,0,0,null,null,null,null,null,null,0,0,null,null,null,null,null,null,0,0,null,null,null,null,null,null,null,null,null,null,null,null,0,0,null,null,0,0,0,"2014-2015"]
[11,null,null,null,"Var Coach",0,"0-0-0",0,0,null,null,null,null,null,null,0,0,null,null,null,null,null,null,0,0,null,null,null,null,null,null,0,0,null,null,null,null,null,null,0,0,null,null,null,null,null,null,0,0,null,null,null,null,null,null,null,null,null,null,null,null,0,0,null,null,0,0,0,"2014-2015"]
[1,null,null,null,"Var Quizzer",0,{"$f":"IF(I13=0,0,SUM(F13/I13))","v":0},0,{"$f":"(COUNTA(J13:BK13)/2)-6","v":0},null,null,null,null,null,null,0,{"$f":"SUM(K13+M13+O13)","v":0},null,null,null,null,null,null,0,{"$f":"SUM(S13+U13+W13)","v":0},null,null,null,null,null,null,0,{"$f":"SUM(AA13+AC13+AE13)","v":0},null,null,null,null,null,null,0,{"$f":"SUM(AI13+AK13+AM13)","v":0},null,null,null,null,null,null,0,{"$f":"SUM(AQ13+AS13+AU13)","v":0},null,null,null,null,null,null,null,null,null,null,null,null,0,{"$f":"SUM(AY13+BA13+BC13+BE13+BG13+BI13)","v":0},{"$f":"SUM(P13+X13+AF13+AN13+AV13)/(SUM(COUNTA(J13:AW13)/2)-5)","v":{"$error":"#DIV/0!"}},{"$f":"(SUM(BL13-G13))*-1","v":{"$error":"#DIV/0!"}},null,null,null,"2014-2015"]
[2,null,null,null,"Var Quizzer",0,0,0,0,null,null,null,null,null,null,0,0,null,null,null,null,null,null,0,0,null,null,null,null,null,null,0,0,null,null,null,null,null,null,0,0,null,null,null,null,null,null,0,0,null,null,null,null,null,null,null,null,null,null,null,null,0,0,{"$error":"#DIV/0!"},{"$error":"#DIV/0!"},null,null,null,"2014-2015"]
[3,null,null,null,"Var Quizzer",0,0,0,0,null,null,null,null,null,null,0,0,null,null,null,null,null,null,0,0,null,null,null,null,null,null,0,0,null,null,null,null,null,null,0,0,null,null,null,null,null,null,0,0,null,null,null,null,null,null,null,null,null,null,null,null,0,0,{"$error":"#DIV/0!"},{"$error":"#DIV/0!"},null,null,null,"2014-2015"]
[4,null,null,null,"Var Quizzer",0,0,0,0,null,null,null,null,null,null,0,0,null,null,null,null,null,null,0,0,null,null,null,null,null,null,0,0,null,null,null,null,null,null,0,0,null,null,null,null,null,null,0,0,null,null,null,null,null,null,null,null,null,null,null,null,0,0,{"$error":"#DIV/0!"},{"$error":"#DIV/0!"},null,null,null,"2014-2015"]
[5,null,null,null,"Var Quizzer",0,0,0,0,null,null,null,null,null,null,0,0,null,null,null,null,null,null,0,0,null,null,null,null,null,null,0,0,null,null,null,null,null,null,0,0,null,null,null,null,null,null,0,0,null,null,null,null,null,null,null,null,null,null,null,null,0,0,{"$error":"#DIV/0!"},{"$error":"#DIV/0!"},null,null,null,"2014-2015"]
[6,null,null,null,"Var Quizzer",0,0,0,0,null,null,null,null,null,null,0,0,null,null,null,null,null,null,0,0,null,null,null,null,null,null,0,0,null,null,null,null,null,null,0,0,null,null,null,null,null,null,0,0,null,null,null,null,null,null,null,null,null,null,null,null,0,0,{"$error":"#DIV/0!"},{"$error":"#DIV/0!"},null,null,null,"2014-2015"]
[7,null,null,null,"Var Quizzer",0,0,0,0,null,null,null,null,null,null,0,0,null,null,null,null,null,null,0,0,null,null,null,null,null,null,0,0,null,null,null,null,null,null,0,0,null,null,null,null,null,null,0,0,null,null,null,null,null,null,null,null,null,null,null,null,0,0,{"$error":"#DIV/0!"},{"$error":"#DIV/0!"},null,null,null,"2014-2015"]
[8,null,null,null,"Var Quizzer",0,0,0,0,null,null,null,null,null,null,0,0,null,null,null,null,null,null,0,0,null,null,null,null,null,null,0,0,null,null,null,null,null,null,0,0,null,null,null,null,null,null,0,0,null,null,null,null,null,null,null,null,null,null,null,null,0,0,{"$error":"#DIV/0!"},{"$error":"#DIV/0!"},null,null,null,"2014-2015"]
[9,null,null,null,"Var Quizzer",0,0,0,0,null,null,null,null,null,null,0,0,null,null,null,null,null,null,0,0,null,null,null,null,null,null,0,0,null,null,null,null,null,null,0,0,null,null,null,null,null,null,0,0,null,null,null,null,null,null,null,null,null,null,null,null,0,0,{"$error":"#DIV/0!"},{"$error":"#DIV/0!"},null,null,null,"2014-2015"]
[10,null,null,null,"Var Quizzer",0,0,0,0,null,null,null,null,null,null,0,0,null,null,null,null,null,null,0,0,null,null,null,null,null,null,0,0,null,null,null,null,null,null,0,0,null,null,null,null,null,null,0,0,null,null,null,null,null,null,null,null,null,null,null,null,0,0,{"$error":"#DIV/0!"},{"$error":"#DIV/0!"},null,null,null,"2014-2015"]
[11,null,null,null,"Var Quizzer",0,0,0,0,null,null,null,null,null,null,0,0,null,null,null,null,null,null,0,0,null,null,null,null,null,null,0,0,null,null,null,null,null,null,0,0,null,null,null,null,null,null,0,0,null,null,null,null,null,null,null,null,null,null,null,null,0,0,{"$error":"#DIV/0!"},{"$error":"#DIV/0!"},null,null,null,"2014-2015"]
[12,null,null,null,"Var Quizzer",0,0,0,0,null,null,null,null,null,null,0,0,null,null,null,null,null,null,0,0,null,null,null,null,null,null,0,0,null,null,null,null,null,null,0,0,null,null,null,null,null,null,0,0,null,null,null,null,null,null,null,null,null,null,null,null,0,0,{"$error":"#DIV/0!"},{"$error":"#DIV/0!"},null,null,null,"2014-2015"]
[13,null,null,null,"Var Quizzer",0,0,0,0,null,null,null,null,null,null,0,0,null,null,null,null,null,null,0,0,null,null,null,null,null,null,0,0,null,null,null,null,null,null,0,0,null,null,null,null,null,null,0,0,null,null,null,null,null,null,null,null,null,null,null,null,0,0,{"$error":"#DIV/0!"},{"$error":"#DIV/0!"},null,null,null,"2014-2015"]
[14,null,null,null,"Var Quizzer",0,0,0,0,null,null,null,null,null,null,0,0,null,null,null,null,null,null,0,0,null,null,null,null,null,null,0,0,null,null,null,null,null,null,0,0,null,null,null,null,null,null,0,0,null,null,null,null,null,null,null,null,null,null,null,null,0,0,{"$error":"#DIV/0!"},{"$error":"#DIV/0!"},null,null,null,"2014-2015"]
[15,null,null,null,"Var Quizzer",0,0,0,0,null,null,null,null,null,null,0,0,null,null,null,null,null,null,0,0,null,null,null,null,null,null,0,0,null,null,null,null,null,null,0,0,null,null,null,null,null,null,0,0,null,null,null,null,null,null,null,null,null,null,null,null,0,0,{"$error":"#DIV/0!"},{"$error":"#DIV/0!"},null,null,null,"2014-2015"]
[16,null,null,null,"Var Quizzer",0,0,0,0,null,null,null,null,null,null,0,0,null,null,null,null,null,null,0,0,null,null,null,null,null,null,0,0,null,null,null,null,null,null,0,0,null,null,null,null,null,null,0,0,null,null,null,null,null,null,null,null,null,null,null,null,0,0,{"$error":"#DIV/0!"},{"$error":"#DIV/0!"},null,null,null,"2014-2015"]
[17,null,null,null,"Var Quizzer",0,0,0,0,null,null,null,null,null,null,0,0,null,null,null,null,null,null,0,0,null,null,null,null,null,null,0,0,null,null,null,null,null,null,0,0,null,null,null,null,null,null,0,0,null,null,null,null,null,null,null,null,null,null,null,null,0,0,{"$error":"#DIV/0!"},{"$error":"#DIV/0!"},null,null,null,"2014-2015"]
[18,null,null,null,"Var Quizzer",0,0,0,0,null,null,null,null,null,null,0,0,null,null,null,null,null,null,0,0,null,null,null,null,null,null,0,0,null,null,null,null,null,null,0,0,null,null,null,null,null,null,0,0,null,null,null,null,null,null,null,null,null,null,null,null,0,0,{"$error":"#DIV/0!"},{"$error":"#DIV/0!"},null,null,null,"2014-2015"]
[19,null,null,null,"Var Quizzer",0,0,0,0,null,null,null,null,null,null,0,0,null,null,null,null,null,null,0,0,null,null,null,null,null,null,0,0,null,null,null,null,null,null,0,0,null,null,null,null,null,null,0,0,null,null,null,null,null,null,null,null,null,null,null,null,0,0,{"$error":"#DIV/0!"},{"$error":"#DIV/0!"},null,null,null,"2014-2015"]
[20,null,null,null,"Var Quizzer",0,0,0,0,null,null,null,null,null,null,0,0,null,null,null,null,null,null,0,0,null,null,null,null,null,null,0,0,null,null,null,null,null,null,0,0,null,null,null,null,null,null,0,0,null,null,null,null,null,null,null,null,null,null,null,null,0,0,{"$error":"#DIV/0!"},{"$error":"#DIV/0!"},null,null,null,"2014-2015"]
[21,null,null,null,"Var Quizzer",0,0,0,0,null,null,null,null,null,null,0,0,null,null,null,null,null,null,0,0,null,null,null,null,null,null,0,0,null,null,null,null,null,null,0,0,null,null,null,null,null,null,0,0,null,null,null,null,null,null,null,null,null,null,null,null,0,0,{"$error":"#DIV/0!"},{"$error":"#DIV/0!"},null,null,null,"2014-2015"]
[22,null,null,null,"Var Quizzer",0,0,0,0,null,null,null,null,null,null,0,0,null,null,null,null,null,null,0,0,null,null,null,null,null,null,0,0,null,null,null,null,null,null,0,0,null,null,null,null,null,null,0,0,null,null,null,null,null,null,null,null,null,null,null,null,0,0,{"$error":"#DIV/0!"},{"$error":"#DIV/0!"},null,null,null,"2014-2015"]
[23,null,null,null,"Var Quizzer",0,0,0,0,null,null,null,null,null,null,0,0,null,null,null,null,null,null,0,0,null,null,null,null,null,null,0,0,null,null,null,null,null,null,0,0,null,null,null,null,null,null,0,0,null,null,null,null,null,null,null,null,null,null,null,null,0,0,{"$error":"#DIV/0!"},{"$error":"#DIV/0!"},null,null,null,"2014-2015"]
[24,null,null,null,"Var Quizzer",0,0,0,0,null,null,null,null,null,null,0,0,null,null,null,null,null,null,0,0,null,null,null,null,null,null,0,0,null,null,null,null,null,null,0,0,null,null,null,null,null,null,0,0,null,null,null,null,null,null,null,null,null,null,null,null,0,0,{"$error":"#DIV/0!"},{"$error":"#DIV/0!"},null,null,null,"2014-2015"]
[25,null,null,null,"Var Quizzer",0,0,0,0,null,null,null,null,null,null,0,0,null,null,null,null,null,null,0,0,null,null,null,null,null,null,0,0,null,null,null,null,null,null,0,0,null,null,null,null,null,null,0,0,null,null,null,null,null,null,null,null,null,null,null,null,0,0,{"$error":"#DIV/0!"},{"$error":"#DIV/0!"},null,null,null,"2014-2015"]
[26,null,null,null,"Var Quizzer",0,0,0,0,null,null,null,null,null,null,0,0,null,null,null,null,null,null,0,0,null,null,null,null,null,null,0,0,null,null,null,null,null,null,0,0,null,null,null,null,null,null,0,0,null,null,null,null,null,null,null,null,null,null,null,null,0,0,{"$error":"#DIV/0!"},{"$error":"#DIV/0!"},null,null,null,"2014-2015"]
[27,null,null,null,"Var Quizzer",0,0,0,0,null,null,null,null,null,null,0,0,null,null,null,null,null,null,0,0,null,null,null,null,null,null,0,0,null,null,null,null,null,null,0,0,null,null,null,null,null,null,0,0,null,null,null,null,null,null,null,null,null,null,null,null,0,0,{"$error":"#DIV/0!"},{"$error":"#DIV/0!"},null,null,null,"2014-2015"]
[28,null,null,null,"Var Quizzer",0,0,0,0,null,null,null,null,null,null,0,0,null,null,null,null,null,null,0,0,null,null,null,null,null,null,0,0,null,null,null,null,null,null,0,0,null,null,null,null,null,null,0,0,null,null,null,null,null,null,null,null,null,null,null,null,0,0,{"$error":"#DIV/0!"},{"$error":"#DIV/0!"},null,null,null,"2014-2015"]
[29,null,null,null,"Var Quizzer",0,0,0,0,null,null,null,null,null,null,0,0,null,null,null,null,null,null,0,0,null,null,null,null,null,null,0,0,null,null,null,null,null,null,0,0,null,null,null,null,null,null,0,0,null,null,null,null,null,null,null,null,null,null,null,null,0,0,{"$error":"#DIV/0!"},{"$error":"#DIV/0!"},null,null,null,"2014-2015"]
[30,null,null,null,"Var Quizzer",0,0,0,0,null,null,null,null,null,null,0,0,null,null,null,null,null,null,0,0,null,null,null,null,null,null,0,0,null,null,null,null,null,null,0,0,null,null,null,null,null,null,0,0,null,null,null,null,null,null,null,null,null,null,null,null,0,0,{"$error":"#DIV/0!"},{"$error":"#DIV/0!"},null,null,null,"2014-2015"]
[31,null,null,null,"Var Quizzer",0,0,0,0,null,null,null,null,null,null,0,0,null,null,null,null,null,null,0,0,null,null,null,null,null,null,0,0,null,null,null,null,null,null,0,0,null,null,null,null,null,null,0,0,null,null,null,null,null,null,null,null,null,null,null,null,0,0,{"$error":"#DIV/0!"},{"$error":"#DIV/0!"},null,null,null,"2014-2015"]
[]
[1,null,null,null,"LL Coach",{"$f":"SUM(J45+L45+N45+R45+T45+V45+Z45+AB45+AD45+AH45+AJ45+AL45+AP45+AR45+AT45+AX45+AZ45+BB45+BD45+BF45+BH45)","v":0},{"$f":"TEXT(BN45,\"0\")&\"-\"&TEXT(BO45,\"0\")&\"-\"&TEXT(BP45,\"0\")","v":"0-0-0"},{"$f":"SUM(K45+M45+O45+S45+U45+W45+AA45+AC45+AE45+AI45+AK45+AM45+AQ45+AS45+AU45+AY45+BA45+BC45+BE45+BG45+BI45)","v":0},{"$f":"(COUNTA(J45:BK45)/2)-6","v":0},null,null,null,null,null,null,{"$f":"SUM(J45+L45+N45)","v":0},0,null,null,null,null,null,null,{"$f":"SUM(R45+T45+V45)","v":0},0,null,null,null,null,null,null,{"$f":"SUM(Z45+AB45+AD45)","v":0},0,null,null,null,null,null,null,{"$f":"SUM(AH45+AJ45+AL45)","v":0},0,null,null,null,null,null,null,{"$f":"SUM(AP45+AR45+AT45)","v":0},0,null,null,null,null,null,null,null,null,null,null,null,null,{"$f":"SUM(AX45+AZ45+BB45+BD45+BF45+BH45)","v":0},0,null,null,{"$f":"SUM(COUNTIF(J45,12)+COUNTIF(L45,12)+COUNTIF(N45,12)+COUNTIF(R45,12)+COUNTIF(T45,12)+COUNTIF(V45,12)+COUNTIF(Z45,12)+COUNTIF(AB45,12)+COUNTIF(AD45,12)+COUNTIF(AH45,12)+COUNTIF(AJ45,12)+COUNTIF(AL45,12)+COUNTIF(AP45,12)+COUNTIF(AR45,12)+COUNTIF(AT45,12)+COUNTIF(AX45,12)+COUNTIF(AZ45,12)+COUNTIF(BB45,12)+COUNTIF(BD45,12)+COUNTIF(BF45,12)+COUNTIF(BH45,12)+COUNTIF(J45,11)+COUNTIF(L45,11)+COUNTIF(N45,11)+COUNTIF(R45,11)+COUNTIF(T45,11)+COUNTIF(V45,11)+COUNTIF(Z45,11)+COUNTIF(AB45,11)+COUNTIF(AD45,11)+COUNTIF(AH45,11)+COUNTIF(AJ45,11)+COUNTIF(AL45,11)+COUNTIF(AP45,11)+COUNTIF(AR45,11)+COUNTIF(AT45,11)+COUNTIF(AX45,11)+COUNTIF(AZ45,11)+COUNTIF(BB45,11)+COUNTIF(BD45,11)+COUNTIF(BF45,11)+COUNTIF(BH45,11)+COUNTIF(J45,10)+COUNTIF(L45,10)+COUNTIF(N45,10)+COUNTIF(R45,10)+COUNTIF(T45,10)+COUNTIF(V45,10)+COUNTIF(Z45,10)+COUNTIF(AB45,10)+COUNTIF(AD45,10)+COUNTIF(AH45,10)+COUNTIF(AJ45,10)+COUNTIF(AL45,10)+COUNTIF(AP45,10)+COUNTIF(AR45,10)+COUNTIF(AT45,10)+COUNTIF(AX45,10)+COUNTIF(AZ45,10)+COUNTIF(BB45,10)+COUNTIF(BD45,10)+COUNTIF(BF45,10)+COUNTIF(BH45,10))","v":0},{"$f":"SUM(COUNTIF(J45:N45,7)+COUNTIF(R45:V45,7)+COUNTIF(Z45:AD45,7)+COUNTIF(AH45:AL45,7)+COUNTIF(AP45:AT45,7)+COUNTIF(AX45:BH45,7)+COUNTIF(J45:N45,6)+COUNTIF(R45:V45,6)+COUNTIF(Z45:AD45,6)+COUNTIF(AH45:AL45,6)+COUNTIF(AP45:AT45,6)+COUNTIF(AX45:BH45,6)+COUNTIF(J45:N45,5)+COUNTIF(R45:V45,5)+COUNTIF(Z45:AD45,5)+COUNTIF(AH45:AL45,5)+COUNTIF(AP45:AT45,5)+COUNTIF(AX45:BH45,5))","v":0},{"$f":"SUM(COUNTIF(J45:N45,3)+COUNTIF(R45:V45,3)+COUNTIF(Z45:AD45,3)+COUNTIF(AH45:AL45,3)+COUNTIF(AP45:AT45,3)+COUNTIF(AX45:BH45,3)+COUNTIF(J45:N45,2)+COUNTIF(R45:V45,2)+COUNTIF(Z45:AD45,2)+COUNTIF(AH45:AL45,2)+COUNTIF(AP45:AT45,2)+COUNTIF(AX45:BH45,2)+COUNTIF(J45:N45,1)+COUNTIF(R45:V45,1)+COUNTIF(Z45:AD45,1)+COUNTIF(AH45:AL45,1)+COUNTIF(AP45:AT45,1)+COUNTIF(AX45:BH45,1))","v":0},"2014-2015"]
[2,null,null,null,"LL Coach",0,{"$f":"TEXT(BN46,\"0\")&\"-\"&TEXT(BO46,\"0\")&\"-\"&TEXT(BP46,\"0\")","v":"0-0-0"},0,0,null,null,null,null,null,null,0,0,null,null,null,null,null,null,0,0,null,null,null,null,null,null,0,0,null,null,null,null,null,null,0,0,null,null,null,null,null,null,0,0,null,null,null,null,null,null,null,null,null,null,null,null,0,0,null,null,{"$f":"SUM(COUNTIF(J46,12)+COUNTIF(L46,12)+COUNTIF(N46,12)+COUNTIF(R46,12)+COUNTIF(T46,12)+COUNTIF(V46,12)+COUNTIF(Z46,12)+COUNTIF(AB46,12)+COUNTIF(AD46,12)+COUNTIF(AH46,12)+COUNTIF(AJ46,12)+COUNTIF(AL46,12)+COUNTIF(AP46,12)+COUNTIF(AR46,12)+COUNTIF(AT46,12)+COUNTIF(AX46,12)+COUNTIF(AZ46,12)+COUNTIF(BB46,12)+COUNTIF(BD46,12)+COUNTIF(BF46,12)+COUNTIF(BH46,12)+COUNTIF(J46,11)+COUNTIF(L46,11)+COUNTIF(N46,11)+COUNTIF(R46,11)+COUNTIF(T46,11)+COUNTIF(V46,11)+COUNTIF(Z46,11)+COUNTIF(AB46,11)+COUNTIF(AD46,11)+COUNTIF(AH46,11)+COUNTIF(AJ46,11)+COUNTIF(AL46,11)+COUNTIF(AP46,11)+COUNTIF(AR46,11)+COUNTIF(AT46,11)+COUNTIF(AX46,11)+COUNTIF(AZ46,11)+COUNTIF(BB46,11)+COUNTIF(BD46,11)+COUNTIF(BF46,11)+COUNTIF(BH46,11)+COUNTIF(J46,10)+COUNTIF(L46,10)+COUNTIF(N46,10)+COUNTIF(R46,10)+COUNTIF(T46,10)+COUNTIF(V46,10)+COUNTIF(Z46,10)+COUNTIF(AB46,10)+COUNTIF(AD46,10)+COUNTIF(AH46,10)+COUNTIF(AJ46,10)+COUNTIF(AL46,10)+COUNTIF(AP46,10)+COUNTIF(AR46,10)+COUNTIF(AT46,10)+COUNTIF(AX46,10)+COUNTIF(AZ46,10)+COUNTIF(BB46,10)+COUNTIF(BD46,10)+COUNTIF(BF46,10)+COUNTIF(BH46,10))","v":0},{"$f":"SUM(COUNTIF(J46:N46,7)+COUNTIF(R46:V46,7)+COUNTIF(Z46:AD46,7)+COUNTIF(AH46:AL46,7)+COUNTIF(AP46:AT46,7)+COUNTIF(AX46:BH46,7)+COUNTIF(J46:N46,6)+COUNTIF(R46:V46,6)+COUNTIF(Z46:AD46,6)+COUNTIF(AH46:AL46,6)+COUNTIF(AP46:AT46,6)+COUNTIF(AX46:BH46,6)+COUNTIF(J46:N46,5)+COUNTIF(R46:V46,5)+COUNTIF(Z46:AD46,5)+COUNTIF(AH46:AL46,5)+COUNTIF(AP46:AT46,5)+COUNTIF(AX46:BH46,5))","v":0},{"$f":"SUM(COUNTIF(J46:N46,3)+COUNTIF(R46:V46,3)+COUNTIF(Z46:AD46,3)+COUNTIF(AH46:AL46,3)+COUNTIF(AP46:AT46,3)+COUNTIF(AX46:BH46,3)+COUNTIF(J46:N46,2)+COUNTIF(R46:V46,2)+COUNTIF(Z46:AD46,2)+COUNTIF(AH46:AL46,2)+COUNTIF(AP46:AT46,2)+COUNTIF(AX46:BH46,2)+COUNTIF(J46:N46,1)+COUNTIF(R46:V46,1)+COUNTIF(Z46:AD46,1)+COUNTIF(AH46:AL46,1)+COUNTIF(AP46:AT46,1)+COUNTIF(AX46:BH46,1))","v":0},"2014-2015"]
[3,null,null,null,"LL Coach",0,{"$f":"TEXT(BN47,\"0\")&\"-\"&TEXT(BO47,\"0\")&\"-\"&TEXT(BP47,\"0\")","v":"0-0-0"},0,0,null,null,null,null,null,null,0,0,null,null,null,null,null,null,0,0,null,null,null,null,null,null,0,0,null,null,null,null,null,null,0,0,null,null,null,null,null,null,0,0,null,null,null,null,null,null,null,null,null,null,null,null,0,0,null,null,{"$f":"SUM(COUNTIF(J47,12)+COUNTIF(L47,12)+COUNTIF(N47,12)+COUNTIF(R47,12)+COUNTIF(T47,12)+COUNTIF(V47,12)+COUNTIF(Z47,12)+COUNTIF(AB47,12)+COUNTIF(AD47,12)+COUNTIF(AH47,12)+COUNTIF(AJ47,12)+COUNTIF(AL47,12)+COUNTIF(AP47,12)+COUNTIF(AR47,12)+COUNTIF(AT47,12)+COUNTIF(AX47,12)+COUNTIF(AZ47,12)+COUNTIF(BB47,12)+COUNTIF(BD47,12)+COUNTIF(BF47,12)+COUNTIF(BH47,12)+COUNTIF(J47,11)+COUNTIF(L47,11)+COUNTIF(N47,11)+COUNTIF(R47,11)+COUNTIF(T47,11)+COUNTIF(V47,11)+COUNTIF(Z47,11)+COUNTIF(AB47,11)+COUNTIF(AD47,11)+COUNTIF(AH47,11)+COUNTIF(AJ47,11)+COUNTIF(AL47,11)+COUNTIF(AP47,11)+COUNTIF(AR47,11)+COUNTIF(AT47,11)+COUNTIF(AX47,11)+COUNTIF(AZ47,11)+COUNTIF(BB47,11)+COUNTIF(BD47,11)+COUNTIF(BF47,11)+COUNTIF(BH47,11)+COUNTIF(J47,10)+COUNTIF(L47,10)+COUNTIF(N47,10)+COUNTIF(R47,10)+COUNTIF(T47,10)+COUNTIF(V47,10)+COUNTIF(Z47,10)+COUNTIF(AB47,10)+COUNTIF(AD47,10)+COUNTIF(AH47,10)+COUNTIF(AJ47,10)+COUNTIF(AL47,10)+COUNTIF(AP47,10)+COUNTIF(AR47,10)+COUNTIF(AT47,10)+COUNTIF(AX47,10)+COUNTIF(AZ47,10)+COUNTIF(BB47,10)+COUNTIF(BD47,10)+COUNTIF(BF47,10)+COUNTIF(BH47,10))","v":0},{"$f":"SUM(COUNTIF(J47:N47,7)+COUNTIF(R47:V47,7)+COUNTIF(Z47:AD47,7)+COUNTIF(AH47:AL47,7)+COUNTIF(AP47:AT47,7)+COUNTIF(AX47:BH47,7)+COUNTIF(J47:N47,6)+COUNTIF(R47:V47,6)+COUNTIF(Z47:AD47,6)+COUNTIF(AH47:AL47,6)+COUNTIF(AP47:AT47,6)+COUNTIF(AX47:BH47,6)+COUNTIF(J47:N47,5)+COUNTIF(R47:V47,5)+COUNTIF(Z47:AD47,5)+COUNTIF(AH47:AL47,5)+COUNTIF(AP47:AT47,5)+COUNTIF(AX47:BH47,5))","v":0},{"$f":"SUM(COUNTIF(J47:N47,3)+COUNTIF(R47:V47,3)+COUNTIF(Z47:AD47,3)+COUNTIF(AH47:AL47,3)+COUNTIF(AP47:AT47,3)+COUNTIF(AX47:BH47,3)+COUNTIF(J47:N47,2)+COUNTIF(R47:V47,2)+COUNTIF(Z47:AD47,2)+COUNTIF(AH47:AL47,2)+COUNTIF(AP47:AT47,2)+COUNTIF(AX47:BH47,2)+COUNTIF(J47:N47,1)+COUNTIF(R47:V47,1)+COUNTIF(Z47:AD47,1)+COUNTIF(AH47:AL47,1)+COUNTIF(AP47:AT47,1)+COUNTIF(AX47:BH47,1))","v":0},"2014-2015"]
[4,null,null,null,"LL Coach",0,{"$f":"TEXT(BN48,\"0\")&\"-\"&TEXT(BO48,\"0\")&\"-\"&TEXT(BP48,\"0\")","v":"0-0-0"},0,0,null,null,null,null,null,null,0,0,null,null,null,null,null,null,0,0,null,null,null,null,null,null,0,0,null,null,null,null,null,null,0,0,null,null,null,null,null,null,0,0,null,null,null,null,null,null,null,null,null,null,null,null,0,0,null,null,{"$f":"SUM(COUNTIF(J48,12)+COUNTIF(L48,12)+COUNTIF(N48,12)+COUNTIF(R48,12)+COUNTIF(T48,12)+COUNTIF(V48,12)+COUNTIF(Z48,12)+COUNTIF(AB48,12)+COUNTIF(AD48,12)+COUNTIF(AH48,12)+COUNTIF(AJ48,12)+COUNTIF(AL48,12)+COUNTIF(AP48,12)+COUNTIF(AR48,12)+COUNTIF(AT48,12)+COUNTIF(AX48,12)+COUNTIF(AZ48,12)+COUNTIF(BB48,12)+COUNTIF(BD48,12)+COUNTIF(BF48,12)+COUNTIF(BH48,12)+COUNTIF(J48,11)+COUNTIF(L48,11)+COUNTIF(N48,11)+COUNTIF(R48,11)+COUNTIF(T48,11)+COUNTIF(V48,11)+COUNTIF(Z48,11)+COUNTIF(AB48,11)+COUNTIF(AD48,11)+COUNTIF(AH48,11)+COUNTIF(AJ48,11)+COUNTIF(AL48,11)+COUNTIF(AP48,11)+COUNTIF(AR48,11)+COUNTIF(AT48,11)+COUNTIF(AX48,11)+COUNTIF(AZ48,11)+COUNTIF(BB48,11)+COUNTIF(BD48,11)+COUNTIF(BF48,11)+COUNTIF(BH48,11)+COUNTIF(J48,10)+COUNTIF(L48,10)+COUNTIF(N48,10)+COUNTIF(R48,10)+COUNTIF(T48,10)+COUNTIF(V48,10)+COUNTIF(Z48,10)+COUNTIF(AB48,10)+COUNTIF(AD48,10)+COUNTIF(AH48,10)+COUNTIF(AJ48,10)+COUNTIF(AL48,10)+COUNTIF(AP48,10)+COUNTIF(AR48,10)+COUNTIF(AT48,10)+COUNTIF(AX48,10)+COUNTIF(AZ48,10)+COUNTIF(BB48,10)+COUNTIF(BD48,10)+COUNTIF(BF48,10)+COUNTIF(BH48,10))","v":0},{"$f":"SUM(COUNTIF(J48:N48,7)+COUNTIF(R48:V48,7)+COUNTIF(Z48:AD48,7)+COUNTIF(AH48:AL48,7)+COUNTIF(AP48:AT48,7)+COUNTIF(AX48:BH48,7)+COUNTIF(J48:N48,6)+COUNTIF(R48:V48,6)+COUNTIF(Z48:AD48,6)+COUNTIF(AH48:AL48,6)+COUNTIF(AP48:AT48,6)+COUNTIF(AX48:BH48,6)+COUNTIF(J48:N48,5)+COUNTIF(R48:V48,5)+COUNTIF(Z48:AD48,5)+COUNTIF(AH48:AL48,5)+COUNTIF(AP48:AT48,5)+COUNTIF(AX48:BH48,5))","v":0},{"$f":"SUM(COUNTIF(J48:N48,3)+COUNTIF(R48:V48,3)+COUNTIF(Z48:AD48,3)+COUNTIF(AH48:AL48,3)+COUNTIF(AP48:AT48,3)+COUNTIF(AX48:BH48,3)+COUNTIF(J48:N48,2)+COUNTIF(R48:V48,2)+COUNTIF(Z48:AD48,2)+COUNTIF(AH48:AL48,2)+COUNTIF(AP48:AT48,2)+COUNTIF(AX48:BH48,2)+COUNTIF(J48:N48,1)+COUNTIF(R48:V48,1)+COUNTIF(Z48:AD48,1)+COUNTIF(AH48:AL48,1)+COUNTIF(AP48:AT48,1)+COUNTIF(AX48:BH48,1))","v":0},"2014-2015"]
[1,null,null,null,"LL Quizzer",0,{"$f":"IF(I49=0,0,SUM(F49/I49))","v":0},0,{"$f":"(COUNTA(J49:BK49)/2)-6","v":0},null,null,null,null,null,null,0,{"$f":"SUM(K49+M49+O49)","v":0},null,null,null,null,null,null,0,{"$f":"SUM(S49+U49+W49)","v":0},null,null,null,null,null,null,0,{"$f":"SUM(AA49+AC49+AE49)","v":0},null,null,null,null,null,null,0,0,null,null,null,null,null,null,0,{"$f":"SUM(AQ49+AS49+AU49)","v":0},null,null,null,null,null,null,null,null,null,null,null,null,0,{"$f":"SUM(AY49+BA49+BC49+BE49+BG49+BI49)","v":0},{"$f":"SUM(P49+X49+AF49+AN49+AV49)/(SUM(COUNTA(J49:AW49)/2)-5)","v":{"$error":"#DIV/0!"}},{"$f":"(SUM(BL49-G49))*-1","v":{"$error":"#DIV/0!"}},null,null,null,"2014-2015"]
[2,null,null,null,"LL Quizzer",0,0,0,0,null,null,null,null,null,null,0,{"$f":"SUM(K50+M50+O50)","v":0},null,null,null,null,null,null,0,0,null,null,null,null,null,null,0,0,null,null,null,null,null,null,0,{"$f":"SUM(AI50+AK50+AM50)","v":0},null,null,null,null,null,null,0,0,null,null,null,null,null,null,null,null,null,null,null,null,0,0,{"$error":"#DIV/0!"},{"$error":"#DIV/0!"},null,null,null,"2014-2015"]
[3,null,null,null,"LL Quizzer",0,0,0,0,null,null,null,null,null,null,0,{"$f":"SUM(K51+M51+O51)","v":0},null,null,null,null,null,null,0,0,null,null,null,null,null,null,0,0,null,null,null,null,null,null,0,0,null,null,null,null,null,null,0,0,null,null,null,null,null,null,null,null,null,null,null,null,0,0,{"$error":"#DIV/0!"},{"$error":"#DIV/0!"},null,null,null,"2014-2015"]
[4,null,null,null,"LL Quizzer",0,0,0,0,null,null,null,null,null,null,0,{"$f":"SUM(K52+M52+O52)","v":0},null,null,null,null,null,null,0,0,null,null,null,null,null,null,0,0,null,null,null,null,null,null,0,0,null,null,null,null,null,null,0,0,null,null,null,null,null,null,null,null,null,null,null,null,0,0,{"$error":"#DIV/0!"},{"$error":"#DIV/0!"},null,null,null,"2014-2015"]
[5,null,null,null,"LL Quizzer",0,0,0,0,null,null,null,null,null,null,0,{"$f":"SUM(K53+M53+O53)","v":0},null,null,null,null,null,null,0,0,null,null,null,null,null,null,0,0,null,null,null,null,null,null,0,0,null,null,null,null,null,null,0,0,null,null,null,null,null,null,null,null,null,null,null,null,0,0,{"$error":"#DIV/0!"},{"$error":"#DIV/0!"},null,null,null,"2014-2015"]
[6,null,null,null,"LL Quizzer",0,0,0,-0.5,null,null,null,null,null,null,0,null,null,null,null,null,null,null,0,0,null,null,null,null,null,null,0,0,null,null,null,null,null,null,0,0,null,null,null,null,null,null,0,0,null,null,null,null,null,null,null,null,null,null,null,null,0,0,0,0,null,null,null,"2014-2015"]
[7,null,null,null,"LL Quizzer",0,0,0,0,null,null,null,null,null,null,0,{"$f":"SUM(K55+M55+O55)","v":0},null,null,null,null,null,null,0,0,null,null,null,null,null,null,0,0,null,null,null,null,null,null,0,0,null,null,null,null,null,null,0,0,null,null,null,null,null,null,null,null,null,null,null,null,0,0,{"$error":"#DIV/0!"},{"$error":"#DIV/0!"},null,null,null,"2014-2015"]
[8,null,null,null,"LL Quizzer",0,0,0,0,null,null,null,null,null,null,0,0,null,null,null,null,null,null,0,0,null,null,null,null,null,null,0,0,null,null,null,null,null,null,0,0,null,null,null,null,null,null,0,0,null,null,null,null,null,null,null,null,null,null,null,null,0,0,{"$error":"#DIV/0!"},{"$error":"#DIV/0!"},null,null,null,"2014-2015"]
[9,null,null,null,"LL Quizzer",0,0,0,0,null,null,null,null,null,null,0,0,null,null,null,null,null,null,0,0,null,null,null,null,null,null,0,0,null,null,null,null,null,null,0,0,null,null,null,null,null,null,0,0,null,null,null,null,null,null,null,null,null,null,null,null,0,0,{"$error":"#DIV/0!"},{"$error":"#DIV/0!"},null,null,null,"2014-2015"]
[10,null,null,null,"LL Quizzer",0,0,0,0,null,null,null,null,null,null,0,0,null,null,null,null,null,null,0,0,null,null,null,null,null,null,0,0,null,null,null,null,null,null,0,0,null,null,null,null,null,null,0,0,null,null,null,null,null,null,null,null,null,null,null,null,0,0,{"$error":"#DIV/0!"},{"$error":"#DIV/0!"},null,null,null,"2014-2015"]
[11,null,null,null,"LL Quizzer",0,0,0,0,null,null,null,null,null,null,0,0,null,null,null,null,null,null,0,0,null,null,null,null,null,null,0,0,null,null,null,null,null,null,0,0,null,null,null,null,null,null,0,0,null,null,null,null,null,null,null,null,null,null,null,null,0,0,{"$error":"#DIV/0!"},{"$error":"#DIV/0!"},null,null,null,"2014-2015"]
[12,null,null,null,"LL Quizzer",0,0,0,0,null,null,null,null,null,null,0,0,null,null,null,null,null,null,0,0,null,null,null,null,null,null,0,0,null,null,null,null,null,null,0,0,null,null,null,null,null,null,0,0,null,null,null,null,null,null,null,null,null,null,null,null,0,0,{"$error":"#DIV/0!"},{"$error":"#DIV/0!"},null,null,null,"2014-2015"]
[13,null,null,null,"LL Quizzer",0,0,0,0,null,null,null,null,null,null,0,0,null,null,null,null,null,null,0,0,null,null,null,null,null,null,0,0,null,null,null,null,null,null,0,0,null,null,null,null,null,null,0,0,null,null,null,null,null,null,null,null,null,null,null,null,0,0,{"$error":"#DIV/0!"},{"$error":"#DIV/0!"},null,null,null,"2014-2015"]
[]
[null,"First","Last","Team","A Quizzer",{"$f":"SUM(J63+L63+N63+R63+T63+V63+Z63+AB63+AD63+AH63+AJ63+AL63+AP63+AR63+AT63+AX63+AZ63+BB63+BD63+BF63+BH63)","v":0},{"$f":"IF(I63=0,0,SUM(F63/I63))","v":0},{"$f":"SUM(K63+M63+O63+S63+U63+W63+AA63+AC63+AE63+AI63+AK63+AM63+AQ63+AS63+AU63+AY63+BA63+BC63+BE63+BG63+BI63)","v":0},{"$f":"(COUNTA(J63:BK63)/2)-6","v":0},null,null,null,null,null,null,{"$f":"SUM(J63+L63+N63)","v":0},{"$f":"SUM(K63+M63+O63)","v":0},null,null,null,null,null,null,{"$f":"SUM(R63+T63+V63)","v":0},{"$f":"SUM(S63+U63+W63)","v":0},null,null,null,null,null,null,{"$f":"SUM(Z63+AB63+AD63)","v":0},{"$f":"SUM(AA63+AC63+AE63)","v":0},null,null,null,null,null,null,{"$f":"SUM(AH63+AJ63+AL63)","v":0},{"$f":"SUM(AI63+AK63+AM63)","v":0},null,null,null,null,null,null,{"$f":"SUM(AP63+AR63+AT63)","v":0},{"$f":"SUM(AQ63+AS63+AU63)","v":0},null,null,null,null,null,null,null,null,null,null,null,null,{"$f":"SUM(AX63+AZ63+BB63+BD63+BF63+BH63)","v":0},{"$f":"SUM(AY63+BA63+BC63+BE63+BG63+BI63)","v":0},{"$f":"SUM(P63+X63+AF63+AN63+AV63)/(SUM(COUNTA(J63:AW63)/2)-5)","v":{"$error":"#DIV/0!"}},{"$f":"(SUM(BL63-G63))*-1","v":{"$error":"#DIV/0!"}},null,null,null,"2014-2015"]

{"sheet":"Variables","index":1,"n_rows":6,"n_cols":4,"rows_kept":6,"cut":false,"hidden":false,"merged":[[3,6,3,9]]}
[null,"Varsity","LL","Total"]
["Teams",11,4,{"$f":"SUM(B2:C2)","v":15}]
["Quizzers",31,13,{"$f":"SUM(B3:C3)","v":44}]
[]
["Note:","Do not change the location of this worksheet"]
[null,"Do not change the location of any data on this worksheet"]

{"sheet":"Sheet1","index":2,"n_rows":0,"n_cols":0,"rows_kept":0,"cut":false,"hidden":false,"merged":[]}